[Event "Rapid Tournament (RAP)"]
[Site "Biel, Switzerland"]
[Date "2026.07.12"]
[Round "2.41"]
[White "Amsellem, Daniel"]
[Black "Tkhoruk, Roman"]
[Result "0-1"]
[TimeControl "15 + 5"]
[WhiteTitle "-"]
[BlackTitle "-"]
[WhiteFideId "1363522"]
[BlackFideId "34161589"]
[WhiteElo "1650"]
[BlackElo "2076"]

1. c4 {[%clk 00:15:08]} Nf6 {[%clk 00:15:08]} {[%emt 00:00:02]} 2. Nf3 {[%clk
00:15:11]} {[%emt 00:00:02]} e6 {[%clk 00:15:12]} {[%emt 00:00:03]} 3. g3
{[%clk 00:15:07]} {[%emt 00:00:07]} b6 {[%clk 00:15:14]} {[%emt 00:00:03]} 4.
Bg2 {[%clk 00:15:09]} {[%emt 00:00:03]} Bb7 {[%clk 00:15:18]} {[%emt 00:00:02]}
5. O-O {[%clk 00:15:10]} {[%emt 00:00:03]} Be7 {[%clk 00:15:21]} {[%emt
00:00:02]} 6. d4 {[%clk 00:15:11]} {[%emt 00:00:04]} O-O {[%clk 00:15:23]}
{[%emt 00:00:04]} 7. Nc3 {[%clk 00:15:14]} {[%emt 00:00:02]} d5 {[%clk
00:15:19]} {[%emt 00:00:09]} 8. cxd5 {[%clk 00:15:06]} {[%emt 00:00:14]} exd5
{[%clk 00:15:22]} {[%emt 00:00:02]} 9. Bf4 {[%clk 00:14:53]} {[%emt 00:00:17]}
c5 {[%clk 00:15:23]} {[%emt 00:00:04]} 10. Rc1 {[%clk 00:14:40]} {[%emt
00:00:17]} Nc6 {[%clk 00:15:17]} {[%emt 00:00:11]} 11. Nb5 {[%clk 00:13:48]}
{[%emt 00:00:57]} a6 {[%clk 00:15:08]} {[%emt 00:00:15]} 12. Nc7 {[%clk
00:12:47]} {[%emt 00:01:06]} Rc8 {[%clk 00:15:08]} {[%emt 00:00:05]} 13. dxc5
{[%clk 00:12:47]} {[%emt 00:00:04]} bxc5 {[%clk 00:15:09]} {[%emt 00:00:05]} 14.
Nxd5 {[%clk 00:12:34]} {[%emt 00:00:17]} Qxd5 {[%clk 00:15:08]} {[%emt
00:00:06]} 15. Qc2 {[%clk 00:12:18]} {[%emt 00:00:22]} Nd4 {[%clk 00:15:03]}
{[%emt 00:00:09]} 16. Qc3 {[%clk 00:11:39]} {[%emt 00:00:44]} Nxe2+ {[%clk
00:15:06]} {[%emt 00:00:02]} 0-1

[Event "Rapid Tournament (RAP)"]
[Site "Biel, Switzerland"]
[Date "2026.07.12"]
[Round "2.42"]
[White "Gunzinger, Severin"]
[Black "De Gregorio, Alexis"]
[Result "0-1"]
[TimeControl "15 + 5"]
[WhiteTitle "-"]
[BlackTitle "-"]
[WhiteFideId "1362518"]
[BlackFideId "1310054"]
[WhiteElo "1607"]
[BlackElo "2030"]

1. d4 {[%clk 00:15:08]} {[%emt 00:00:02]} Nf6 {[%clk 00:15:08]} {[%emt
00:00:02]} 2. c4 {[%clk 00:15:10]} {[%emt 00:00:03]} e6 {[%clk 00:15:11]} 3.
Nc3 {[%clk 00:15:13]} {[%emt 00:00:02]} Bb4 {[%clk 00:15:14]} {[%emt 00:00:04]}
4. e3 {[%clk 00:15:15]} {[%emt 00:00:01]} O-O {[%clk 00:15:14]} {[%emt
00:00:05]} 5. Nge2 {[%clk 00:15:17]} {[%emt 00:00:02]} d5 {[%clk 00:15:13]}
{[%emt 00:00:06]} 6. a3 {[%clk 00:15:19]} {[%emt 00:00:03]} Be7 {[%clk
00:15:11]} {[%emt 00:00:07]} 7. Nf4 {[%clk 00:15:15]} {[%emt 00:00:09]} c6
{[%clk 00:14:25]} {[%emt 00:00:52]} 8. cxd5 {[%clk 00:15:04]} {[%emt 00:00:16]}
exd5 {[%clk 00:14:23]} {[%emt 00:00:06]} 9. Bd3 {[%clk 00:14:59]} {[%emt
00:00:10]} Bd6 {[%clk 00:14:09]} {[%emt 00:00:20]} 10. O-O {[%clk 00:14:36]}
{[%emt 00:00:28]} Re8 {[%clk 00:12:40]} {[%emt 00:01:34]} 11. b4 {[%clk
00:13:16]} {[%emt 00:01:25]} Nbd7 {[%clk 00:11:39]} {[%emt 00:01:06]} 12. f3
{[%clk 00:11:40]} {[%emt 00:01:41]} Bxf4 {[%clk 00:10:28]} {[%emt 00:01:16]} 13.
exf4 {[%clk 00:11:41]} {[%emt 00:00:03]} Qb6 {[%clk 00:09:55]} {[%emt
00:00:38]} 14. Ne2 {[%clk 00:11:09]} {[%emt 00:00:37]} Nf8 {[%clk 00:09:28]}
{[%emt 00:00:32]} 15. f5 {[%clk 00:09:36]} {[%emt 00:01:39]} a5 {[%clk
00:08:09]} {[%emt 00:01:25]} 16. Rb1 {[%clk 00:07:47]} {[%emt 00:01:53]} axb4
{[%clk 00:07:53]} {[%emt 00:00:21]} 17. axb4 {[%clk 00:07:33]} {[%emt
00:00:19]} Ra2 {[%clk 00:06:47]} {[%emt 00:01:11]} 18. g4 {[%clk 00:07:01]}
{[%emt 00:00:37]} Qc7 {[%clk 00:04:57]} {[%emt 00:01:56]} 19. Bf4 {[%clk
00:05:48]} {[%emt 00:01:17]} Qb6 {[%clk 00:03:46]} {[%emt 00:01:16]} 20. Kh1
{[%clk 00:05:13]} {[%emt 00:00:40]} Qa7 {[%clk 00:03:02]} {[%emt 00:00:50]} 21.
Re1 {[%clk 00:04:49]} {[%emt 00:00:28]} Qa4 {[%clk 00:02:41]} {[%emt 00:00:26]}
22. Qxa4 {[%clk 00:04:19]} {[%emt 00:00:35]} Rxa4 {[%clk 00:02:45]} {[%emt
00:00:02]} 23. b5 {[%clk 00:03:42]} {[%emt 00:00:41]} Bd7 {[%clk 00:02:39]}
{[%emt 00:00:11]} 24. bxc6 {[%clk 00:03:29]} {[%emt 00:00:18]} Bxc6 {[%clk
00:02:31]} {[%emt 00:00:12]} 25. Be5 {[%clk 00:03:25]} {[%emt 00:00:09]} N8d7
{[%clk 00:02:24]} {[%emt 00:00:13]} 26. Ng3 {[%clk 00:02:49]} {[%emt 00:00:41]}
Nxe5 {[%clk 00:02:09]} {[%emt 00:00:20]} 27. dxe5 {[%clk 00:02:51]} {[%emt
00:00:03]} Nd7 {[%clk 00:01:52]} {[%emt 00:00:22]} 28. e6 {[%clk 00:02:38]}
{[%emt 00:00:18]} Nc5 {[%clk 00:01:56]} {[%emt 00:00:01]} 29. Bb5 {[%clk
00:01:35]} {[%emt 00:01:09]} Ra3 {[%clk 00:01:23]} {[%emt 00:00:37]} 30. Bxc6
{[%clk 00:01:26]} {[%emt 00:00:13]} bxc6 {[%clk 00:01:27]} {[%emt 00:00:02]} 31.
Rec1 {[%clk 00:01:15]} {[%emt 00:00:16]} Ra5 {[%clk 00:01:16]} {[%emt
00:00:16]} 32. Rb6 {[%clk 00:01:05]} {[%emt 00:00:15]} fxe6 {[%clk 00:01:14]}
{[%emt 00:00:07]} 33. Rxc6 {[%clk 00:01:07]} {[%emt 00:00:02]} Nd3 {[%clk
00:01:10]} {[%emt 00:00:10]} 34. R1c3 {[%clk 00:00:30]} {[%emt 00:00:42]} Nf4
{[%clk 00:00:54]} {[%emt 00:00:21]} 35. fxe6 {[%clk 00:00:28]} {[%emt
00:00:07]} Nxe6 {[%clk 00:00:53]} {[%emt 00:00:07]} 36. Re3 {[%clk 00:00:27]}
{[%emt 00:00:05]} Ra1+ {[%clk 00:00:52]} {[%emt 00:00:06]} 37. Kg2 {[%clk
00:00:28]} {[%emt 00:00:04]} Nf4+ {[%clk 00:00:52]} {[%emt 00:00:05]} 38. Kf2
{[%clk 00:00:32]} {[%emt 00:00:02]} Ra2+ {[%clk 00:00:55]} {[%emt 00:00:01]} 39.
Ne2 {[%clk 00:00:28]} {[%emt 00:00:09]} Rxe3 {[%clk 00:00:57]} {[%emt
00:00:03]} 40. Kxe3 {[%clk 00:00:29]} {[%emt 00:00:04]} Nxe2 {[%clk 00:00:59]}
{[%emt 00:00:03]} 41. h4 {[%clk 00:00:24]} {[%emt 00:00:10]} d4+ {[%clk
00:01:00]} {[%emt 00:00:04]} 42. Kd3 {[%clk 00:00:26]} {[%emt 00:00:03]} Ng1
{[%clk 00:00:45]} {[%emt 00:00:19]} 43. Kxd4 {[%clk 00:00:26]} {[%emt
00:00:06]} Nxf3+ {[%clk 00:00:49]} {[%emt 00:00:01]} 44. Ke4 {[%clk 00:00:22]}
{[%emt 00:00:09]} Nxh4 {[%clk 00:00:51]} {[%emt 00:00:03]} 45. Kf4 {[%clk
00:00:23]} {[%emt 00:00:04]} Ra5 {[%clk 00:00:50]} {[%emt 00:00:06]} 46. Kg3
{[%clk 00:00:20]} {[%emt 00:00:08]} Ng6 {[%clk 00:00:52]} {[%emt 00:00:02]} 47.
Rc2 {[%clk 00:00:20]} {[%emt 00:00:06]} Ra3+ {[%clk 00:00:55]} {[%emt
00:00:02]} 48. Kf2 {[%clk 00:00:23]} {[%emt 00:00:02]} Kf7 {[%clk 00:00:58]}
{[%emt 00:00:02]} 49. Rc5 {[%clk 00:00:24]} {[%emt 00:00:04]} Kf6 {[%clk
00:00:58]} {[%emt 00:00:05]} 50. Rf5+ {[%clk 00:00:28]} {[%emt 00:00:01]} Ke6
{[%clk 00:01:01]} {[%emt 00:00:02]} 51. Rh5 {[%clk 00:00:29]} {[%emt 00:00:04]}
h6 {[%clk 00:01:04]} {[%emt 00:00:02]} 52. Rc5 {[%emt 00:00:07]} Ne5 {[%clk
00:01:05]} 53. Rc7 {[%clk 00:00:27]} {[%emt 00:00:09]} Kf6 {[%clk 00:01:07]}
{[%emt 00:00:03]} 54. Rc5 {[%clk 00:00:19]} {[%emt 00:00:12]} Nd3+ {[%clk
00:01:08]} {[%emt 00:00:05]} 0-1

[Event "Rapid Tournament (RAP)"]
[Site "Biel, Switzerland"]
[Date "2026.07.12"]
[Round "2.44"]
[White "Trubini, Timon"]
[Black "Filimonov, Arsenii"]
[Result "0-1"]
[TimeControl "15 + 5"]
[WhiteTitle "-"]
[BlackTitle "-"]
[WhiteFideId "1347799"]
[BlackFideId "34171584"]
[WhiteElo "1896"]
[BlackElo "1843"]

1. e4 {[%clk 00:15:08]} {[%emt 00:00:01]} c5 {[%clk 00:15:09]} {[%emt
00:00:02]} 2. Nf3 {[%clk 00:15:10]} {[%emt 00:00:03]} e6 {[%clk 00:15:12]}
{[%emt 00:00:01]} 3. d4 {[%clk 00:15:14]} {[%emt 00:00:02]} cxd4 {[%clk
00:15:15]} {[%emt 00:00:02]} 4. Nxd4 {[%clk 00:15:18]} {[%emt 00:00:02]} a6
{[%clk 00:15:18]} {[%emt 00:00:01]} 5. Bd3 {[%clk 00:14:53]} {[%emt 00:00:29]}
Nc6 {[%clk 00:15:13]} {[%emt 00:00:11]} 6. Nxc6 {[%clk 00:14:38]} {[%emt
00:00:20]} dxc6 {[%clk 00:15:16]} {[%emt 00:00:01]} 7. O-O {[%clk 00:14:37]}
{[%emt 00:00:06]} Bc5 {[%clk 00:15:05]} {[%emt 00:00:16]} 8. Nc3 {[%clk
00:14:23]} {[%emt 00:00:20]} e5 {[%clk 00:15:07]} {[%emt 00:00:02]} 9. Qf3
{[%clk 00:13:07]} {[%emt 00:01:20]} Ne7 {[%clk 00:14:46]} {[%emt 00:00:27]} 10.
Rd1 {[%clk 00:12:54]} {[%emt 00:00:19]} Qc7 {[%clk 00:14:37]} {[%emt 00:00:13]}
11. Bc4 {[%clk 00:12:49]} {[%emt 00:00:11]} O-O {[%clk 00:14:37]} {[%emt
00:00:05]} 12. Bg5 {[%clk 00:12:29]} {[%emt 00:00:24]} Be6 {[%clk 00:13:42]}
{[%emt 00:01:00]} 13. Bxe6 {[%clk 00:12:06]} {[%emt 00:00:28]} fxe6 {[%clk
00:13:46]} 14. Qh3 {[%clk 00:12:02]} {[%emt 00:00:09]} Rxf2 {[%clk 00:11:50]}
{[%emt 00:02:01]} 15. Qxe6+ {[%clk 00:11:52]} {[%emt 00:00:15]} Kh8 {[%clk
00:11:47]} {[%emt 00:00:08]} 16. Bxe7 {[%clk 00:11:39]} {[%emt 00:00:18]} Rf6+
{[%clk 00:11:35]} {[%emt 00:00:17]} 17. Bxc5 {[%clk 00:11:36]} {[%emt
00:00:08]} Rxe6 {[%clk 00:11:38]} {[%emt 00:00:01]} 18. Rd3 {[%clk 00:11:04]}
{[%emt 00:00:38]} b6 {[%clk 00:11:28]} {[%emt 00:00:16]} 19. Ba3 {[%clk
00:11:03]} {[%emt 00:00:05]} Rd8 {[%clk 00:11:24]} {[%emt 00:00:09]} 20. Rf3
{[%clk 00:11:06]} {[%emt 00:00:02]} Rf6 {[%clk 00:11:20]} {[%emt 00:00:09]} 21.
Rxf6 {[%clk 00:10:44]} {[%emt 00:00:27]} gxf6 {[%clk 00:11:23]} {[%emt
00:00:02]} 22. Rf1 {[%clk 00:10:46]} {[%emt 00:00:03]} Qg7 {[%clk 00:11:09]}
{[%emt 00:00:19]} 23. Ne2 {[%clk 00:10:39]} {[%emt 00:00:12]} Rd2 {[%clk
00:11:09]} {[%emt 00:00:05]} 24. Ng3 {[%clk 00:10:43]} {[%emt 00:00:01]} Rxc2
{[%clk 00:10:55]} {[%emt 00:00:20]} 25. Rd1 {[%clk 00:10:47]} Qc7 {[%emt
00:00:43]} 26. Nf5 {[%clk 00:10:33]} c5 {[%clk 00:08:28]} {[%emt 00:02:14]} 27.
Rd6 {[%clk 00:10:22]} {[%emt 00:00:15]} b5 {[%clk 00:07:42]} {[%emt 00:00:51]}
28. b4 {[%clk 00:08:08]} {[%emt 00:02:19]} cxb4 {[%clk 00:07:35]} {[%emt
00:00:14]} 29. Bxb4 {[%clk 00:08:09]} {[%emt 00:00:03]} Qa7+ {[%clk 00:07:29]}
{[%emt 00:00:11]} 0-1

[Event "Rapid Tournament (RAP)"]
[Site "Biel, Switzerland"]
[Date "2026.07.12"]
[Round "2.45"]
[White "Creux, Francois"]
[Black "Saucy, Etienne"]
[Result "1-0"]
[TimeControl "15 + 5"]
[WhiteTitle "-"]
[BlackTitle "-"]
[WhiteFideId "1357743"]
[BlackFideId "1374117"]
[WhiteElo "1668"]
[BlackElo "1442"]

1. e4 {[%clk 00:15:07]} {[%emt 00:00:03]} c6 {[%clk 00:15:08]} {[%emt
00:00:04]} 2. Nf3 {[%clk 00:15:09]} {[%emt 00:00:02]} d5 {[%clk 00:15:11]}
{[%emt 00:00:03]} 3. Nc3 {[%clk 00:15:12]} {[%emt 00:00:02]} dxe4 {[%clk
00:14:44]} {[%emt 00:00:31]} 4. Nxe4 {[%clk 00:15:14]} {[%emt 00:00:02]} Nf6
{[%clk 00:14:46]} {[%emt 00:00:03]} 5. Ng3 {[%clk 00:15:04]} g6 {[%clk
00:14:14]} {[%emt 00:00:52]} 6. Bc4 {[%clk 00:14:48]} Bg7 {[%clk 00:12:46]}
{[%emt 00:01:54]} 7. h3 {[%clk 00:14:33]} b5 {[%clk 00:12:35]} {[%emt
00:00:37]} 8. Bb3 {[%clk 00:14:25]} O-O {[%clk 00:12:14]} {[%emt 00:00:37]} 9.
d4 {[%clk 00:14:10]} Nd5 {[%clk 00:11:32]} {[%emt 00:01:08]} 10. c3 {[%clk
00:13:44]} Re8 {[%clk 00:11:05]} {[%emt 00:01:03]} 11. O-O {[%clk 00:13:46]}
Nd7 {[%clk 00:10:25]} {[%emt 00:00:48]} 12. Bg5 {[%clk 00:13:28]} N7f6 {[%clk
00:09:30]} {[%emt 00:01:23]} 13. Qd2 {[%clk 00:13:21]} Qd6 {[%clk 00:08:54]}
{[%emt 00:00:53]} 14. Rad1 {[%clk 00:12:42]} h6 {[%clk 00:06:52]} {[%emt
00:02:51]} 15. Bxh6 {[%clk 00:12:06]} Be6 {[%clk 00:05:12]} {[%emt 00:02:26]}
16. Bxg7 {[%clk 00:11:56]} Kxg7 {[%clk 00:05:13]} {[%emt 00:00:19]} 17. Ng5
{[%clk 00:11:42]} Nf4 {[%clk 00:04:24]} {[%emt 00:01:13]} 18. Nxe6+ {[%clk
00:11:21]} Nxe6 {[%clk 00:04:25]} {[%emt 00:00:30]} 19. Bc2 {[%clk 00:10:37]}
Rh8 {[%clk 00:04:14]} {[%emt 00:01:05]} 20. Ne4 {[%clk 00:10:08]} {[%emt
00:00:34]} Nxe4 {[%clk 00:04:09]} {[%emt 00:00:10]} 21. Bxe4 {[%clk 00:10:10]}
{[%emt 00:00:02]} Rh4 {[%clk 00:04:05]} {[%emt 00:00:10]} 22. Qe3 {[%clk
00:09:47]} {[%emt 00:00:28]} Rah8 {[%clk 00:03:57]} {[%emt 00:00:14]} 23. Rd3
{[%clk 00:09:27]} {[%emt 00:00:25]} Nf4 {[%clk 00:03:53]} {[%emt 00:00:09]} 24.
Rd2 {[%emt 00:01:45]} Qc7 {[%clk 00:03:00]} {[%emt 00:00:05]} 25. g3 {[%clk
00:07:44]} Rxh3 {[%clk 00:02:55]} {[%emt 00:01:10]} 26. Qxf4 {[%clk 00:07:35]}
e5 {[%clk 00:02:07]} {[%emt 00:01:08]} 27. dxe5 {[%clk 00:07:25]} Qe7 {[%clk
00:01:32]} {[%emt 00:00:53]} 28. Bxc6 {[%clk 00:06:54]} Qc5 {[%clk 00:01:16]}
{[%emt 00:00:58]} 29. Qf6+ {[%clk 00:06:44]} Kh6 {[%clk 00:01:04]} {[%emt
00:00:32]} 30. Qxh8+ {[%clk 00:06:38]} 1-0

[Event "Rapid Tournament (RAP)"]
[Site "Biel, Switzerland"]
[Date "2026.07.12"]
[Round "2.46"]
[White "Gheorghiu, Alexandru"]
[Black "Gluckman, David"]
[Result "0-1"]
[TimeControl "15 + 5"]
[WhiteTitle "-"]
[BlackTitle "-"]
[WhiteFideId "1363573"]
[BlackFideId "14300010"]
[WhiteElo "1647"]
[BlackElo "2161"]

1. d4 {[%clk 00:15:08]} {[%emt 00:00:02]} e6 {[%clk 00:15:05]} {[%emt
00:00:06]} 2. c4 {[%clk 00:15:11]} {[%emt 00:00:02]} f5 {[%clk 00:15:09]} 3.
Nc3 {[%clk 00:15:12]} {[%emt 00:00:04]} Nf6 {[%clk 00:15:12]} {[%emt 00:00:02]}
4. g3 {[%clk 00:15:15]} d5 {[%clk 00:15:13]} {[%emt 00:00:04]} 5. Bg2 {[%clk
00:15:15]} {[%emt 00:00:06]} c6 {[%clk 00:15:17]} {[%emt 00:00:01]} 6. Bg5
{[%clk 00:15:15]} {[%emt 00:00:04]} Be7 {[%clk 00:14:53]} {[%emt 00:00:29]} 7.
e3 {[%clk 00:15:19]} {[%emt 00:00:02]} O-O {[%clk 00:14:56]} {[%emt 00:00:01]}
8. Nge2 {[%clk 00:15:22]} {[%emt 00:00:02]} h6 {[%clk 00:14:18]} {[%emt
00:00:44]} 9. Bxf6 {[%clk 00:15:22]} {[%emt 00:00:05]} Bxf6 {[%clk 00:14:22]}
{[%emt 00:00:01]} 10. O-O {[%clk 00:15:01]} {[%emt 00:00:26]} Nd7 {[%clk
00:13:57]} {[%emt 00:00:30]} 11. Nf4 {[%clk 00:15:03]} {[%emt 00:00:03]} Qe8
{[%clk 00:13:56]} {[%emt 00:00:05]} 12. cxd5 {[%clk 00:14:59]} {[%emt
00:00:09]} exd5 {[%clk 00:13:59]} {[%emt 00:00:03]} 13. Qb3 {[%clk 00:14:30]}
{[%emt 00:00:34]} g5 {[%clk 00:13:31]} {[%emt 00:00:33]} 14. Nfxd5 {[%clk
00:13:29]} {[%emt 00:01:06]} cxd5 {[%clk 00:13:35]} {[%emt 00:00:01]} 15. Nxd5
{[%clk 00:13:33]} {[%emt 00:00:02]} Qf7 {[%clk 00:12:45]} {[%emt 00:00:54]} 16.
Rac1 {[%clk 00:13:33]} {[%emt 00:00:04]} Kh8 {[%clk 00:12:37]} {[%emt
00:00:13]} 17. Rc7 {[%clk 00:13:27]} {[%emt 00:00:12]} Bd8 {[%clk 00:12:12]}
{[%emt 00:00:29]} 18. Rc2 {[%clk 00:13:16]} {[%emt 00:00:14]} Nb6 {[%clk
00:12:06]} {[%emt 00:00:14]} 19. Nxb6 {[%clk 00:11:17]} {[%emt 00:02:03]} Qxb3
{[%clk 00:12:02]} {[%emt 00:00:09]} 20. axb3 {[%clk 00:11:21]} {[%emt
00:00:02]} Bxb6 {[%clk 00:12:00]} {[%emt 00:00:06]} 21. Rd1 {[%clk 00:11:00]}
{[%emt 00:00:26]} Rb8 {[%clk 00:11:16]} {[%emt 00:00:49]} 22. Bd5 {[%clk
00:10:51]} {[%emt 00:00:13]} Bd7 {[%clk 00:11:18]} {[%emt 00:00:04]} 23. Kf1
{[%clk 00:10:34]} {[%emt 00:00:22]} f4 {[%clk 00:10:32]} {[%emt 00:00:52]} 24.
e4 {[%clk 00:09:37]} {[%emt 00:01:02]} fxg3 {[%clk 00:10:16]} {[%emt 00:00:21]}
25. hxg3 {[%clk 00:09:41]} {[%emt 00:00:01]} Rbd8 {[%clk 00:10:10]} {[%emt
00:00:11]} 26. Kg2 {[%clk 00:09:31]} {[%emt 00:00:14]} Bc6 {[%clk 00:09:29]}
{[%emt 00:00:47]} 27. Bxc6 {[%clk 00:09:24]} {[%emt 00:00:12]} bxc6 {[%clk
00:09:31]} {[%emt 00:00:02]} 28. Rcd2 {[%clk 00:08:49]} {[%emt 00:00:40]} Rf7
{[%clk 00:09:10]} {[%emt 00:00:26]} 29. Kh3 {[%clk 00:07:45]} {[%emt 00:01:09]}
Rfd7 {[%clk 00:09:05]} {[%emt 00:00:10]} 30. f4 {[%clk 00:07:31]} {[%emt
00:00:17]} gxf4 {[%clk 00:08:27]} {[%emt 00:00:45]} 31. gxf4 {[%clk 00:07:35]}
{[%emt 00:00:02]} Rxd4 {[%clk 00:08:29]} {[%emt 00:00:02]} 32. Rxd4 {[%clk
00:07:38]} {[%emt 00:00:03]} Rxd4 {[%clk 00:08:34]} 33. Rxd4 {[%clk 00:07:42]}
Bxd4 {[%clk 00:08:38]} 34. Kg4 {[%clk 00:07:46]} Kg7 {[%clk 00:08:39]} {[%emt
00:00:04]} 35. Kf5 {[%clk 00:07:36]} {[%emt 00:00:15]} Bxb2 {[%clk 00:08:41]}
{[%emt 00:00:03]} 36. e5 {[%clk 00:06:52]} {[%emt 00:00:49]} Bc1 {[%clk
00:08:14]} {[%emt 00:00:32]} 37. e6 {[%clk 00:06:41]} {[%emt 00:00:15]} Ba3
{[%clk 00:08:17]} {[%emt 00:00:03]} 38. Ke5 {[%clk 00:06:34]} {[%emt 00:00:11]}
h5 {[%clk 00:08:17]} {[%emt 00:00:05]} 39. f5 {[%clk 00:06:38]} {[%emt
00:00:02]} Be7 {[%clk 00:08:20]} 40. Kf4 {[%clk 00:06:20]} {[%emt 00:00:23]}
Kf6 {[%clk 00:08:24]} {[%emt 00:00:02]} 0-1

[Event "Rapid Tournament (RAP)"]
[Site "Biel, Switzerland"]
[Date "2026.07.12"]
[Round "2.47"]
[White "Hornung, Hans"]
[Black "Alves, Duarte"]
[Result "1-0"]
[TimeControl "15 + 5"]
[WhiteTitle "-"]
[BlackTitle "-"]
[WhiteFideId "4615140"]
[BlackFideId "1370910"]
[WhiteElo "2040"]
[BlackElo "1673"]

1. d4 {[%clk 00:15:08]} {[%emt 00:00:01]} d5 {[%clk 00:15:06]} {[%emt
00:00:05]} 2. c4 {[%clk 00:15:10]} e5 {[%clk 00:15:05]} {[%emt 00:00:07]} 3.
dxe5 {[%clk 00:15:05]} {[%emt 00:00:10]} d4 {[%clk 00:15:04]} {[%emt 00:00:06]}
4. Nf3 {[%clk 00:15:05]} {[%emt 00:00:05]} Nc6 {[%clk 00:15:03]} {[%emt
00:00:06]} 5. a3 {[%clk 00:14:59]} {[%emt 00:00:11]} f6 {[%clk 00:14:52]}
{[%emt 00:00:17]} 6. exf6 {[%clk 00:14:29]} {[%emt 00:00:34]} Nxf6 {[%clk
00:14:54]} {[%emt 00:00:03]} 7. e3 {[%clk 00:12:56]} {[%emt 00:01:38]} Bg4
{[%clk 00:14:26]} {[%emt 00:00:34]} 8. Be2 {[%clk 00:12:29]} {[%emt 00:00:32]}
dxe3 {[%clk 00:14:15]} {[%emt 00:00:16]} 9. Qxd8+ {[%clk 00:11:59]} {[%emt
00:00:33]} Rxd8 {[%clk 00:14:18]} {[%emt 00:00:03]} 10. Bxe3 {[%clk 00:11:55]}
{[%emt 00:00:08]} Bd6 {[%clk 00:13:53]} {[%emt 00:00:31]} 11. Nc3 {[%clk
00:11:41]} {[%emt 00:00:19]} O-O {[%clk 00:13:12]} {[%emt 00:00:46]} 12. O-O
{[%clk 00:11:41]} {[%emt 00:00:04]} Ne5 {[%clk 00:12:56]} {[%emt 00:00:22]} 13.
Nxe5 {[%clk 00:10:52]} {[%emt 00:00:53]} Bxe2 {[%clk 00:12:49]} {[%emt
00:00:13]} 14. Nxe2 {[%clk 00:10:50]} {[%emt 00:00:07]} Bxe5 {[%clk 00:12:52]}
{[%emt 00:00:02]} 15. Rab1 {[%clk 00:10:36]} {[%emt 00:00:19]} Ng4 {[%clk
00:12:40]} {[%emt 00:00:17]} 16. g3 {[%clk 00:09:52]} {[%emt 00:00:48]} Nxe3
{[%clk 00:12:22]} {[%emt 00:00:24]} 17. fxe3 {[%clk 00:09:55]} {[%emt
00:00:02]} Rxf1+ {[%clk 00:12:11]} {[%emt 00:00:17]} 18. Kxf1 {[%clk 00:09:52]}
{[%emt 00:00:07]} Rd2 {[%clk 00:12:02]} {[%emt 00:00:14]} 19. b3 {[%clk
00:09:42]} {[%emt 00:00:15]} c5 {[%clk 00:11:39]} {[%emt 00:00:28]} 20. Ke1
{[%clk 00:09:33]} {[%emt 00:00:13]} Rd6 {[%clk 00:11:04]} {[%emt 00:00:41]} 21.
Rd1 {[%clk 00:09:18]} {[%emt 00:00:20]} Rh6 {[%clk 00:10:53]} {[%emt 00:00:15]}
22. h4 {[%clk 00:09:09]} {[%emt 00:00:13]} g5 {[%clk 00:10:47]} {[%emt
00:00:13]} 23. hxg5 {[%clk 00:07:46]} {[%emt 00:01:28]} Rh1+ {[%clk 00:10:41]}
{[%emt 00:00:11]} 24. Kd2 {[%clk 00:07:44]} {[%emt 00:00:07]} Rh2 {[%clk
00:10:41]} {[%emt 00:00:05]} 25. Kd3 {[%clk 00:07:39]} {[%emt 00:00:09]} Rg2
{[%clk 00:10:06]} {[%emt 00:00:41]} 26. Ke4 {[%clk 00:07:21]} {[%emt 00:00:23]}
Bxg3 {[%clk 00:10:01]} {[%emt 00:00:11]} 27. Nxg3 {[%clk 00:07:19]} {[%emt
00:00:06]} Rxg3 {[%emt 00:00:04]} 28. Kf4 {[%clk 00:07:08]} {[%emt 00:00:13]}
Rg2 {[%clk 00:09:57]} {[%emt 00:00:13]} 29. Rd7 {[%clk 00:06:55]} {[%emt
00:00:17]} Rf2+ {[%clk 00:09:43]} {[%emt 00:00:20]} 30. Ke4 {[%clk 00:06:22]}
{[%emt 00:00:33]} Rf7 {[%clk 00:09:39]} {[%emt 00:00:15]} 31. Rxf7 {[%clk
00:06:17]} {[%emt 00:00:09]} Kxf7 {[%clk 00:09:41]} {[%emt 00:00:02]} 32. Kf5
{[%clk 00:06:03]} {[%emt 00:00:19]} b6 {[%clk 00:09:40]} {[%emt 00:00:07]} 33.
e4 {[%clk 00:05:58]} {[%emt 00:00:10]} a5 {[%clk 00:09:27]} {[%emt 00:00:18]}
34. a4 {[%clk 00:05:53]} {[%emt 00:00:10]} Kg7 {[%clk 00:08:51]} {[%emt
00:00:42]} 35. e5 {[%clk 00:05:46]} {[%emt 00:00:11]} h5 {[%clk 00:08:54]}
{[%emt 00:00:02]} 36. gxh6+ {[%clk 00:05:45]} {[%emt 00:00:06]} Kxh6 {[%clk
00:08:58]} {[%emt 00:00:02]} 37. Kf6 {[%clk 00:05:41]} {[%emt 00:00:08]} Kh7
{[%clk 00:09:00]} {[%emt 00:00:03]} 38. Kf7 {[%clk 00:05:35]} {[%emt 00:00:11]}
Kh6 {[%clk 00:08:47]} {[%emt 00:00:18]} 39. e6 {[%clk 00:05:39]} {[%emt
00:00:02]} Kg5 {[%clk 00:08:48]} {[%emt 00:00:03]} 40. e7 {[%clk 00:05:42]}
{[%emt 00:00:02]} Kf4 {[%clk 00:08:51]} {[%emt 00:00:03]} 41. e8=Q {[%clk
00:05:44]} {[%emt 00:00:02]} 1-0